bitfinex-derivatives/quotes_ETHF0:USTF0_20250624
["timestamp","ask_amount","ask_price","bid_price","bid_amount"]
[1750788370404,27.588,2450.3,2450.2,9.99363]
[1750788370704,28.4038,2450.3,2450.2,9.99363]
[1750788370906,27.588,2450.3,2450.2,9.99363]
[1750788371506,28.4038,2450.3,2450.2,9.99363]
[1750788372705,27.588,2450.3,2450.2,9.99363]
[1750788372908,28.4038,2450.3,2450.2,9.99363]
[1750788373800,0.81576,2450.5,2450.4,0.81572]
[1750788374007,0.8158,2450.4,2450.3,0.81577]
[1750788374205,0.8158,2450.4,2450.3,6.72577]
[1750788374802,0.8158,2450.4,2450.3,5.91]
[1750788375000,0.8158,2450.4,2450.3,7.2466]
[1750788375201,0.8158,2450.4,2450.3,5.91]
[1750788375905,0.8158,2450.4,2450.3,6.7258]
[1750788376500,0.81571,2450.6,2450.5,0.8157]
[1750788376700,28.25071,2450.6,2450.5,5.45]
[1750788377106,28.24071,2450.6,2450.5,9.47353]
[1750788377303,28.24171,2450.6,2450.5,9.47353]
[1750788377905,0.8156,2451.0,2450.9,0.81556]
[1750788378207,28.22256,2451.0,2450.9,7.05556]
[1750788378403,28.22256,2451.0,2450.9,6.24]
[1750788379311,29.35820957,2451.0,2450.9,6.24]
[1750788379514,29.35820957,2451.0,1898.8,0.9555873]
[1750788379515,2.03925,2450.6,2449.6,1.35794949]
[1750788379714,0.81583,2450.3,2450.2,0.81581]
[1750788380014,0.81585,2450.2,2450.1,0.81584]
[1750788380313,0.81585,2450.2,2450.1,7.59754]
[1750788380704,1.8985,2450.9,2450.2,2.03958]
[1750788380705,27.462,2450.4,2450.2,2.03958]
[1750788380903,0.81575,2450.5,2450.4,0.81576]
[1750788381103,0.81575,2450.5,2450.4,7.66746]
[1750788381906,0.81575,2450.5,2450.4,5.52]
[1750788382505,2.22445,2450.5,2450.4,5.52]
[1750788382813,0.81575,2450.5,2450.4,5.52]
[1750788383015,0.81575,2450.5,2450.4,6.33576]
[1750788383310,0.81573,2450.5,2450.4,6.33574]
[1750788383513,28.23673,2450.5,2450.4,5.52]
[1750788383712,28.22573,2450.5,2450.4,5.52]
[1750788384314,28.22573,2450.5,2450.4,6.33576]
[1750788384616,28.22573,2450.5,2450.4,5.52]
[1750788386107,0.81573,2450.5,2450.4,6.33576]
[1750788386308,28.16973,2450.5,2450.4,6.33576]
[1750788386613,28.16973,2450.5,2450.4,5.52]
[1750788387716,28.16973,2450.5,2450.4,6.33576]
[1750788388121,0.81573,2450.5,2450.4,6.33576]
[1750788388313,0.81572,2450.6,2450.5,0.81569]
[1750788388515,0.81572,2450.6,2450.5,6.08]
[1750788388820,29.27944779,2450.6,2450.5,6.89573]
[1750788389015,1.95144779,2450.6,2450.5,6.89573]
[1750788389220,27.308,2450.6,2450.5,6.89573]
[1750788389412,28.44485728,2450.6,2450.5,6.89573]
[1750788389815,0.81566,2450.8,2450.7,0.81562]
[1750788390112,2.03883,2451.1,2450.8,0.8156]
[1750788390113,0.81562,2450.9,2450.8,0.8156]
[1750788390407,0.81562,2450.9,2450.8,7.6458]
[1750788390810,28.11359,2451.0,2450.9,0.8156]
[1750788391008,28.09159,2451.0,2450.9,7.4264]
[1750788391209,0.81551,2451.3,2451.2,0.81547]
[1750788391409,0.81551,2451.3,2451.2,6.66547]
[1750788391608,0.81545,2451.4,2451.3,0.81543]
[1750788391814,0.81542,2451.5,2451.4,0.8154]
[1750788392016,28.07942,2451.5,2451.4,6.9754]
[1750788392322,28.07938,2451.6,2451.5,0.8154]
[1750788392523,28.06638,2451.6,2451.5,6.4754]
[1750788392725,0.81538,2451.6,2451.5,6.4754]
[1750788393022,28.06438,2451.6,2451.5,6.4754]
[1750788393318,0.81535,2451.7,2451.6,0.81533]
[1750788393522,28.05835,2451.7,2451.6,6.35533]
[1750788393926,28.05835,2451.7,2451.6,5.54]
[1750788395924,28.05835,2451.7,2451.6,6.35536]
[1750788396520,28.05835,2451.7,2451.6,5.54]
[1750788396719,28.05835,2451.7,2451.6,6.35536]
[1750788397630,27.96035,2451.7,2451.6,6.35536]
[1750788398323,0.81535,2451.7,2451.6,6.35536]
[1750788398626,27.96035,2451.7,2451.6,5.54]
[1750788398826,29.37175,2451.7,2451.6,5.54]
[1750788399819,2.03862,2451.4,2451.0,0.81555]
[1750788400019,0.81553,2451.1,2451.0,3.93]
[1750788400422,2.17213,2451.1,2451.0,3.93]
[1750788400730,10.11613,2451.1,2451.0,3.93]
[1750788400925,9.3006,2451.1,2450.5,5.9]
[1750788401132,0.8157,2450.6,2450.5,5.56]
[1750788401317,27.092,2450.6,2450.5,5.56]
[1750788401533,27.9077,2450.6,2450.5,6.37573]
[1750788402028,27.092,2450.6,2450.5,6.37573]
[1750788402422,27.9077,2450.6,2450.5,5.56]
[1750788403226,33.62085973,2450.6,2450.5,5.56]
[1750788404424,34.91795973,2450.6,2450.5,5.56]
[1750788405723,33.62085973,2450.6,2450.5,5.56]
[1750788406426,27.8327,2450.6,2450.5,5.56]
[1750788406626,27.8327,2450.6,2450.5,6.37573]
[1750788407530,27.017,2450.6,2450.5,6.37573]
[1750788407931,27.8327,2450.6,2450.5,6.37573]
[1750788408132,27.8327,2450.6,2450.5,5.56]
[1750788408334,27.017,2450.6,2450.5,6.37573]
[1750788408634,27.8327,2450.6,2450.5,6.37573]
[1750788409040,27.8327,2450.6,2450.5,5.56]
[1750788409226,27.8327,2450.6,2450.5,6.37573]
[1750788409534,3.2078,2450.8,2450.5,5.56]
[1750788409724,4.02345,2450.8,2450.7,0.81566]
[1750788409924,0.81562,2450.9,2450.7,8.9078]
[1750788410129,26.953,2450.8,2450.7,5.7]
[1750788410332,27.76863,2450.8,2450.7,9.72346]
[1750788410534,26.953,2450.8,2450.7,6.51566]
[1750788411028,27.76863,2450.8,2450.7,6.51566]
[1750788413032,0.81557,2451.1,2451.0,0.81556]
[1750788413231,27.72057,2451.1,2451.0,7.04556]
[1750788414031,27.72053,2451.1,2451.0,7.04556]
[1750788414427,0.81553,2451.1,2451.0,7.04556]
[1750788414628,9.0811,2452.4,2451.0,22.1228]
[1750788414831,3.25174717,2452.3,2451.7,3.2078]
[1750788415030,0.81527,2451.9,2451.8,0.81527]
[1750788415233,0.81526,2451.9,2451.8,5.24]
[1750788415432,27.75726,2451.9,2451.8,5.24]
[1750788416333,27.75726,2451.9,2451.8,6.0553]
[1750788417329,26.942,2451.9,2451.8,6.0553]
[1750788417734,27.75726,2451.9,2451.8,6.0553]
[1750788417933,26.942,2451.9,2451.8,6.0553]
[1750788418135,0.81526,2451.9,2451.8,6.0553]
[1750788418334,27.72226,2451.9,2451.8,6.0553]
[1750788418529,33.43541973,2451.9,2451.8,5.24]
[1750788420231,38.43541973,2451.9,2451.8,5.24]
[1750788420729,42.04415939,2451.9,2451.8,5.24]
[1750788421138,40.91431973,2451.9,2451.8,5.24]
[1750788421541,35.91431973,2451.9,2451.8,5.24]
[1750788421837,35.84431973,2451.9,2451.8,5.24]
[1750788423040,30.13116,2451.9,2451.8,5.24]
[1750788423235,29.07696,2451.9,2451.8,5.24]
[1750788425338,27.65226,2451.9,2451.8,5.24]
[1750788426336,27.65226,2451.9,2451.8,6.0553]
[1750788426538,27.65226,2451.9,2451.8,5.24]
[1750788427544,28.98646,2451.9,2451.8,5.24]
[1750788430145,28.98646,2451.9,2451.8,4.37402]
[1750788430348,2.03846,2451.6,2451.2,0.9981]
[1750788430643,0.81546,2451.3,2451.2,6.9681]
[1750788430838,27.56446,2451.3,2451.2,7.7836]
[1750788431238,27.56446,2451.3,2451.2,6.9681]
[1750788432039,27.56446,2451.3,2451.2,5.97]
[1750788432240,32.18956,2451.3,2451.2,5.97]
[1750788433943,32.18956,2451.3,2451.2,3.42158]
[1750788434151,2.03894,2451.0,2450.6,1.1638]
[1750788434345,0.81566,2450.7,2450.6,6.5738]
[1750788434548,27.56466,2450.7,2450.6,6.5738]
[1750788439055,27.56466,2450.7,2450.6,5.41]
[1750788440748,0.81566,2450.7,2450.6,5.41]
[1750788440949,27.56666,2450.7,2450.6,5.41]
[1750788441346,27.56666,2450.7,2450.6,6.2257]
[1750788441546,27.56666,2450.7,2450.6,5.41]
[1750788442545,27.56666,2450.7,2450.6,6.2257]
[1750788444053,27.56666,2450.7,2450.6,5.41]
[1750788444255,27.56666,2450.7,2450.6,6.2257]
[1750788444547,0.89856,2450.8,2450.6,5.41]
[1750788444753,0.89856,2450.8,2450.7,2.14996]
[1750788444944,0.89856,2450.8,2450.7,7.8143]
[1750788445147,27.64856,2450.8,2450.7,8.62996]
[1750788445859,0.89856,2450.8,2450.7,8.62996]
[1750788446248,27.64756,2450.8,2450.7,8.62996]
[1750788447058,26.8319,2450.8,2450.7,8.62996]
[1750788447356,6.61166,2451.5,2450.7,13.62996]
[1750788447557,26.747,2451.4,2451.3,0.81546]
[1750788447757,26.747,2451.4,2451.3,6.50546]
[1750788448454,27.56243,2451.4,2451.3,5.69]
[1750788448962,28.87203,2451.4,2451.3,5.69]
[1750788449564,30.00411675,2451.4,2451.3,5.69]
[1750788450060,36.09021675,2451.4,2451.3,5.6071]
[1750788450260,39.11060821,2451.4,2451.3,5.6071]
[1750788451051,34.11060821,2451.4,2451.3,5.6071]
[1750788451353,14.89560821,2451.4,2451.3,5.6071]
[1750788451560,41.63860821,2451.4,2451.3,5.6071]
[1750788451859,4.34321675,2451.4,2451.3,5.6071]
[1750788452055,41.63860821,2451.4,2451.3,5.6071]
[1750788452359,6.23152146,2451.4,2451.3,5.6071]
[1750788452554,3.83582146,2451.4,2451.3,5.6071]
[1750788452754,38.10982146,2451.4,2451.3,5.6071]
[1750788453562,0.81537,2451.6,2451.3,5.6071]
[1750788453863,27.55642,2451.5,2451.4,0.8154]
[1750788454072,27.55642,2451.5,2451.4,6.7254]
[1750788454554,27.55642,2451.5,2451.4,5.91]
[1750788454755,3.02039146,2451.6,2451.5,0.8154]
[1750788454954,26.739,2451.6,2451.5,0.8154]
[1750788455158,26.739,2451.6,2451.5,8.0291]
[1750788455362,27.55436,2451.6,2451.5,8.0291]
[1750788455658,0.81536,2451.6,2451.5,8.0291]
[1750788455965,27.55336,2451.6,2451.5,8.0291]
[1750788458166,27.54836,2451.6,2451.5,8.0291]
[1750788458757,27.54836,2451.6,2451.5,7.2137]
[1750788459052,30.56875146,2451.6,2451.5,7.2137]
[1750788459463,27.54836,2451.6,2451.5,8.0291]
[1750788459965,26.733,2451.6,2451.5,8.0291]
[1750788460466,27.54836,2451.6,2451.5,8.0291]
[1750788460655,26.733,2451.6,2451.5,8.0291]
[1750788460856,0.81536,2451.6,2451.5,8.0291]
[1750788461066,0.81523,2452.1,2452.0,0.81518]
[1750788461273,3.2078,2452.7,2452.3,0.81513]
[1750788461572,0.8151,2452.4,2452.3,6.81513]
[1750788461762,30.56244146,2452.6,2452.5,0.81506]
[1750788462062,3.2078,2452.7,2452.6,0.81503]
[1750788462252,4.44154395,2453.3,2452.6,0.81503]
[1750788462253,3.2078,2453.0,2452.9,0.81493]
[1750788462459,0.81496,2452.9,2452.8,0.81494]
[1750788462659,0.81496,2452.9,2452.8,6.68494]
[1750788462862,26.726,2453.0,2452.9,0.81493]
[1750788463059,26.726,2453.0,2452.9,7.25493]
[1750788463861,27.5349,2453.0,2452.9,6.44]
[1750788464058,33.23578389,2453.0,2452.9,6.44]
[1750788465262,40.76478389,2453.0,2452.9,6.44]
[1750788465668,26.718,2453.0,2452.9,6.44]
[1750788465868,26.718,2453.0,2452.9,7.25493]
[1750788466265,27.5329,2453.0,2452.9,7.25493]
[1750788466969,0.81488,2453.1,2453.0,0.81489]
[1750788467159,0.81488,2453.1,2453.0,6.04489]
[1750788467364,3.2078,2453.3,2453.2,0.81483]
[1750788467567,49.89083066,2453.5,2453.3,0.81478]
[1750788467568,48.3691,2453.5,2453.3,0.81478]
[1750788467768,5.70088389,2453.8,2453.4,0.81474]
[1750788467963,26.71,2453.7,2453.4,7.45692]
[1750788468168,26.71,2453.7,2453.6,0.8147]
[1750788468363,27.52466,2453.7,2453.6,5.77]
[1750788468970,28.87436,2453.7,2453.6,5.77]
[1750788469468,27.52466,2453.7,2453.6,5.77]
[1750788469668,27.52066,2453.7,2453.6,5.77]
[1750788469868,27.51866,2453.7,2453.6,5.77]
[1750788470468,0.81466,2453.7,2453.6,5.77]
[1750788470971,0.81465,2453.8,2453.6,5.77]
[1750788471171,27.51666,2453.7,2453.6,6.5847]
[1750788471573,27.51666,2453.7,2453.6,5.77]
[1750788473167,0.81466,2453.7,2453.6,5.77]
[1750788474866,0.81466,2453.7,2453.6,7.7099]
[1750788475267,0.81466,2453.7,2453.6,6.8952]
[1750788475871,0.81466,2453.7,2453.6,7.7099]
[1750788476272,27.50266,2453.7,2453.6,7.7099]
[1750788476483,0.81466,2453.8,2453.7,0.81463]
[1750788476776,27.50159,2454.0,2453.9,0.8146]
[1750788477081,27.50159,2454.0,2453.9,6.0846]
[1750788477671,27.50159,2454.0,2453.9,5.27]
[1750788478072,27.50159,2454.0,2453.9,6.0846]
[1750788478273,27.50159,2454.0,2453.9,5.27]
[1750788478876,27.50159,2454.0,2453.9,6.0846]
[1750788479472,27.50159,2454.0,2453.9,5.27]
[1750788481579,27.50159,2454.0,2453.9,6.0846]
[1750788481778,0.81459,2454.0,2453.9,6.0846]
[1750788481979,27.48759,2454.0,2453.9,6.0846]
[1750788482476,0.81449,2454.3,2454.2,0.81447]
[1750788482773,27.48649,2454.3,2454.2,7.10447]
[1750788482977,0.81445,2454.4,2454.3,0.81441]
[1750788483178,27.48545,2454.4,2454.3,7.77561]
[1750788483578,8.90868389,2454.7,2454.3,6.9612]
[1750788483776,5.70088389,2454.8,2454.4,2.03609]
[1750788483969,27.48237,2454.7,2454.6,0.81433]
[1750788484175,27.48237,2454.7,2454.6,5.37]
[1750788484377,27.48137,2454.7,2454.6,5.37]
[1750788485179,0.81437,2454.7,2454.6,6.18437]
[1750788485374,27.48137,2454.7,2454.6,6.18437]
[1750788486182,27.48137,2454.7,2454.6,5.37]
[1750788486385,30.49247938,2454.7,2454.6,6.18437]
[1750788486681,30.49247938,2454.7,2454.6,5.37]
[1750788486890,33.70027938,2454.7,2454.6,5.37]
[1750788488179,30.49247938,2454.7,2454.6,5.37]
[1750788488380,30.49247938,2454.7,2454.6,6.18437]
[1750788488584,27.47033,2454.7,2454.6,6.18437]
[1750788489192,26.656,2454.7,2454.6,6.18437]
[1750788489883,27.47033,2454.7,2454.6,6.18437]
[1750788490277,26.656,2454.7,2454.6,6.18437]
[1750788490478,27.47033,2454.7,2454.6,6.18437]
[1750788490682,26.656,2454.7,2454.6,6.18437]
[1750788490886,0.8143,2454.9,2454.8,0.81427]
[1750788491090,27.4633,2454.9,2454.8,7.27427]
[1750788491686,0.8143,2454.9,2454.8,7.27427]
[1750788491883,27.4623,2454.9,2454.8,7.27427]
[1750788493386,27.4623,2454.9,2454.8,6.46]
[1750788493881,27.4623,2454.9,2454.8,7.2743]
[1750788494993,27.46227,2454.9,2454.8,7.2743]
[1750788495389,26.648,2454.9,2454.8,7.2743]
[1750788495592,27.78325249,2454.9,2454.8,7.2743]
[1750788495789,28.59752249,2454.9,2454.8,7.2743]
[1750788496385,1.13525249,2454.9,2454.8,7.2743]
[1750788496587,28.58452249,2454.9,2454.8,7.2743]
[1750788496895,1.94952249,2454.9,2454.8,7.2743]
[1750788497192,28.58152249,2454.9,2454.8,7.2743]
[1750788497791,28.58152249,2454.9,2454.8,6.46]
[1750788498591,29.90982249,2454.9,2454.8,6.46]
[1750788499299,28.58152249,2454.9,2454.8,7.2743]
[1750788499499,27.75925249,2454.9,2454.8,7.2743]
[1750788499713,26.624,2454.9,2454.8,7.2743]
[1750788500002,26.624,2454.9,2454.8,11.0917]
[1750788500902,15.25416,2455.3,2454.8,11.0917]
[1750788500903,3.2078,2455.3,2455.2,0.81417]
[1750788501104,31.77973456,2455.3,2455.2,6.93417]
[1750788501602,1.13680456,2455.3,2455.2,6.93417]
[1750788501989,1.95093456,2455.3,2455.2,6.93417]
[1750788502700,1.13680456,2455.3,2455.2,6.93417]
[1750788503003,26.62,2455.4,2455.3,0.81413]
[1750788503303,0.81408,2455.5,2455.4,0.8141]
[1750788503506,28.57056295,2455.5,2455.4,7.0141]
[1750788503995,28.57056295,2455.5,2455.4,6.2]
[1750788504200,28.57056295,2455.5,2455.4,7.0141]
[1750788504904,28.56556295,2455.5,2455.4,7.0141]
[1750788505206,27.75148295,2455.5,2455.4,7.0141]
[1750788505500,28.56555295,2455.5,2455.4,7.0141]
[1750788505903,1.13848295,2455.5,2455.4,7.0141]
[1750788506294,4.02185,2455.6,2455.5,0.81407]
[1750788506500,5.16110049,2455.6,2455.5,7.24407]
[1750788507307,5.16110049,2455.6,2455.5,6.43]
[1750788507801,5.16110049,2455.6,2455.5,7.24407]
[1750788508797,4.02185,2455.6,2455.5,6.43]
[1750788508997,5.34935,2455.6,2455.5,6.43]
[1750788509305,6.48934202,2455.6,2455.5,6.43]
[1750788510195,8.35848491,2455.6,2455.5,7.24407]
[1750788510400,4.02185,2455.6,2455.5,7.24407]
[1750788510598,33.62398491,2455.6,2455.5,7.24407]
[1750788510905,33.62398491,2455.6,2455.5,6.43]
[1750788511300,2.03532,2455.4,2454.7,3.2078]
[1750788511507,3.00913491,2454.8,2454.7,9.44209]
[1750788511712,26.589,2454.8,2454.7,9.44213]
[1750788512006,26.589,2455.1,2455.0,0.81423]
[1750788512208,30.41233491,2455.1,2455.0,6.49423]
[1750788512908,29.59813491,2455.1,2455.0,6.49423]
[1750788513205,30.41233491,2455.1,2455.0,6.49423]
[1750788513908,30.41233491,2455.1,2455.0,5.68]
[1750788514408,30.41233491,2455.1,2455.0,6.49423]
[1750788514599,30.41233491,2455.1,2455.0,5.68]
[1750788515905,31.59523491,2455.1,2455.0,5.68]
[1750788516106,28.5861,2455.1,2455.0,5.68]
[1750788516307,31.10033303,2455.1,2455.0,5.68]
[1750788516804,38.56533303,2455.1,2455.0,5.68]
[1750788517106,45.99340688,2455.1,2455.0,5.68]
[1750788517313,38.55433303,2455.1,2455.0,5.68]
[1750788517708,45.98240688,2455.1,2455.0,5.37452257]
[1750788519713,43.55433303,2455.1,2455.0,5.37452257]
[1750788520016,43.55433303,2455.1,2455.0,4.47507257]
[1750788520219,43.55433303,2455.1,2455.0,3.64236257]
[1750788520916,43.55433303,2455.1,2455.0,2.49411257]
[1750788521119,2.03579,2454.8,2454.3,0.81445]
[1750788521409,3.82356491,2454.4,2454.3,0.81445]
[1750788521617,3.82356491,2454.4,2454.3,6.43445]
[1750788521916,3.00913491,2454.4,2454.3,6.43445]
[1750788522118,29.57813491,2454.4,2454.3,6.43445]
[1750788522712,30.39256491,2454.4,2454.3,6.43445]
[1750788523014,29.57813491,2454.4,2454.3,6.43445]
[1750788523217,3.82356491,2454.4,2454.3,6.43445]
[1750788523410,26.569,2454.4,2454.3,6.43445]
[1750788523607,26.566,2454.5,2454.4,0.81443]
[1750788523809,26.566,2454.5,2454.4,10.10223]
[1750788524215,27.3804,2454.5,2454.4,10.10223]
[1750788524411,26.566,2454.5,2454.4,10.10223]
[1750788524615,26.566,2454.5,2454.4,16.51263]
[1750788525012,0.81433,2454.8,2454.7,0.81433]
[1750788525208,27.37633,2454.8,2454.7,7.28433]
[1750788525615,27.37633,2454.8,2454.7,6.47]
[1750788525817,28.51742698,2454.8,2454.7,6.47]
[1750788526018,28.51742698,2454.8,2454.7,7.28433]
[1750788526915,27.37533,2454.8,2454.7,7.28433]
[1750788527216,27.37433,2454.8,2454.7,8.52493]
[1750788527427,0.81428,2454.9,2454.8,0.8143]
[1750788527614,27.37128,2454.9,2454.8,8.4973]
[1750788528621,3.2078,2455.1,2455.0,0.81423]
[1750788528816,3.2078,2455.1,2455.0,6.03423]
[1750788529018,29.7618,2455.1,2455.0,6.03423]
[1750788529321,33.58513491,2455.1,2455.0,5.22]
[1750788530217,34.73176812,2455.1,2455.0,5.22]
[1750788530622,34.79551962,2455.1,2455.0,5.22]
[1750788531017,31.786555,2455.1,2455.0,5.22]
[1750788531213,0.0637515,2455.1,2455.0,6.03423]
[1750788531522,0.81406,2455.6,2455.5,0.81403]
[1750788531724,26.547,2455.6,2455.5,6.66403]
[1750788531925,0.81403,2455.6,2455.5,6.66403]
[1750788532125,30.36916491,2455.6,2455.5,6.66403]
[1750788532518,29.55513491,2455.6,2455.5,6.66403]
[1750788532825,30.36916491,2455.6,2455.5,7.2353]
[1750788533019,30.36916491,2455.6,2455.5,5.85]
[1750788534324,31.67726491,2455.6,2455.5,5.85]
[1750788535225,4.9703835,2455.6,2455.5,5.85]
[1750788535523,30.36116491,2455.6,2455.5,5.85]
[1750788535926,30.35716491,2455.6,2455.5,6.66407]
[1750788536122,3.82316491,2455.6,2455.5,6.66407]
[1750788536322,4.02182,2455.7,2455.6,0.81403]
[1750788536519,30.55482,2455.7,2455.6,6.4]
[1750788536927,30.55482,2455.7,2455.6,7.21403]
[1750788537428,30.55482,2455.7,2455.6,6.4]
[1750788538325,4.02182,2455.7,2455.6,6.4]
[1750788538633,30.55282,2455.7,2455.6,7.21403]
[1750788539228,4.02182,2455.7,2455.6,6.4]
[1750788539729,30.54582,2455.7,2455.6,6.4]
[1750788541732,30.54582,2455.7,2455.6,7.21403]
[1750788542227,30.54582,2455.7,2455.6,6.4]
[1750788542831,30.54582,2455.7,2455.6,7.21403]
[1750788543435,30.53382,2455.7,2455.6,7.21403]
[1750788544233,30.53382,2455.7,2455.6,6.4]
[1750788544734,30.5975715,2455.7,2455.6,6.4]
[1750788545627,7.09470641,2455.7,2455.6,6.4]
[1750788545822,30.5905715,2455.7,2455.6,6.4]
[1750788546024,0.0637515,2455.7,2455.6,7.21403]
[1750788546220,0.0637515,2455.7,2455.6,8.51793]
[1750788546832,26.5667515,2455.7,2455.6,8.51793]
[1750788547027,0.81393,2456.0,2455.9,0.81393]
[1750788547227,3.2078,2456.1,2455.9,5.48]
[1750788547429,29.7078,2456.1,2456.0,3.4681]
[1750788547628,29.7078,2456.1,2456.0,11.0506]
[1750788548028,3.2078,2456.1,2456.0,11.0506]
[1750788548432,4.02167,2456.1,2456.0,11.0506]
[1750788548730,0.81383,2456.3,2456.2,0.81381]
[1750788548939,0.81383,2456.3,2456.0,13.4445]
[1750788548940,26.498,2456.2,2456.1,0.81385]
[1750788549235,0.81381,2456.3,2456.2,0.81384]
[1750788549422,0.81381,2456.3,2456.2,6.31384]
[1750788549831,27.30881,2456.3,2456.2,6.31384]
[1750788550437,27.3088,2456.3,2456.2,5.5]
[1750788551131,27.3088,2456.3,2456.2,6.31384]
[1750788551837,27.3088,2456.3,2456.2,5.5]
[1750788553134,28.6182,2456.3,2456.2,5.5]
[1750788553931,33.6182,2456.3,2456.2,5.5]
[1750788554139,0.81387,2456.1,2456.0,3.2078]
[1750788554329,30.30100491,2456.1,2456.0,0.45]
[1750788554529,35.30100491,2456.1,2456.0,0.45]
[1750788554833,37.76486926,2456.1,2456.0,0.45]
[1750788555939,32.76486926,2456.1,2456.0,0.45]
[1750788556138,1.95833435,2456.1,2456.0,3.6578]
[1750788556329,0.81387,2456.1,2456.0,3.6578]
[1750788556536,27.28587,2456.1,2456.0,3.6578]
[1750788556837,27.28587,2456.1,2456.0,0.45]
[1750788557137,28.66817,2456.1,2456.0,0.45]
[1750788557738,29.81369403,2456.1,2456.0,0.45]
[1750788558936,28.66817,2456.1,2456.0,0.45]
[1750788559240,34.81535885,2456.1,2456.0,0.45]
[1750788559940,34.87911035,2456.1,2456.0,0.45]
[1750788560439,41.00696463,2456.1,2456.0,0.45]
[1750788560940,40.94321313,2456.1,2456.0,0.45]
[1750788562947,2.03496,2455.8,2455.4,2.567]
[1750788563138,2.03496,2455.8,2455.5,0.81407]
[1750788563139,0.81403,2455.6,2455.5,0.81407]
[1750788563444,0.81403,2455.6,2455.5,6.98407]
[1750788564238,0.81403,2455.6,2455.5,6.17]
[1750788564840,1.96295631,2455.6,2455.5,6.17]
[1750788565241,1.96295631,2455.6,2455.5,6.98407]
[1750788565948,1.14892631,2455.6,2455.5,6.98407]
[1750788566145,1.14925831,2455.6,2455.5,6.98403]
[1750788566351,27.26303,2455.6,2455.5,6.98403]
[1750788566544,28.41231698,2455.6,2455.5,6.17]
[1750788567249,27.26303,2455.6,2455.5,6.17]
[1750788567449,29.81361638,2455.6,2455.5,6.17]
[1750788568549,28.41231638,2455.6,2455.5,6.98407]
[1750788568751,27.26303,2455.6,2455.5,6.98407]
[1750788569250,27.25403,2455.6,2455.5,6.98407]
[1750788570147,0.81392,2456.0,2455.9,0.81394]
[1750788570355,26.436,2456.2,2456.1,0.81387]
[1750788570559,27.58483966,2456.2,2456.1,6.69387]
[1750788570760,26.436,2456.2,2456.1,9.28027]
[1750788572256,27.24984,2456.2,2456.1,8.4664]
[1750788572456,0.81384,2456.2,2456.1,8.4664]
[1750788572763,28.39386646,2456.2,2456.1,9.28027]
[1750788573064,28.39386627,2456.2,2456.1,8.4664]
[1750788573257,28.39386627,2456.2,2456.1,5.88]
[1750788574665,35.76786627,2456.2,2456.1,5.88]
[1750788575465,37.11516627,2456.2,2456.1,5.88]
[1750788576165,37.11516627,2456.2,2456.1,5.9437515]
[1750788576565,37.11474724,2456.2,2456.1,5.9437515]
[1750788576768,37.10174724,2456.2,2456.1,5.9437515]
[1750788578070,35.75244724,2456.2,2456.1,5.9437515]
[1750788579072,1.96244724,2456.2,2456.1,6.7576215]
[1750788579276,35.74744724,2456.2,2456.1,6.7576215]
[1750788579668,27.55960724,2456.2,2456.1,6.7576215]
[1750788579864,27.22484,2456.2,2456.1,6.7576215]
[1750788580072,0.81384,2456.2,2456.1,6.7576215]
[1750788580271,0.81382,2456.3,2456.2,0.81379]
[1750788580573,27.22182,2456.3,2456.2,7.7237]
[1750788580872,28.37044098,2456.3,2456.2,6.34]
[1750788583671,1.96244098,2456.3,2456.2,7.15384]
[1750788583870,0.81382,2456.3,2456.2,10.9418]
[1750788584073,0.81382,2456.3,2456.2,10.36164]
[1750788584470,0.81382,2456.3,2456.2,8.54784]
[1750788584866,0.81368,2456.8,2456.7,0.81364]
[1750788585067,1.14850237,2456.8,2456.7,4.83]
[1750788585268,27.54250237,2456.8,2456.7,5.64367]
[1750788585573,1.96214237,2456.8,2456.7,5.64367]
[1750788585777,27.54150237,2456.8,2456.7,5.64367]
[1750788586473,6.12785428,2457.2,2456.7,5.64367]
[1750788586474,8.18753,2457.2,2457.1,0.81354]
[1750788586666,28.35065396,2457.2,2457.1,6.83354]
[1750788587268,28.35065396,2457.2,2457.1,6.02]
[1750788589375,28.34265396,2457.2,2457.1,6.02]
[1750788594178,1.96065396,2457.2,2457.1,6.02]
[1750788594374,28.32965396,2457.2,2457.1,6.02]
[1750788594684,27.18253,2457.2,2457.1,6.83354]
[1750788594874,28.32548804,2457.2,2457.1,6.83354]
[1750788595184,27.18253,2457.2,2457.1,6.02]
[1750788595375,28.32534819,2457.2,2457.1,6.02]
[1750788595577,28.32537213,2457.2,2457.1,6.02]
[1750788596282,31.33070475,2457.2,2457.1,6.02]
[1750788597783,31.33070475,2457.2,2457.1,6.83354]
[1750788597784,1.14284213,2457.2,2457.1,6.83354]
[1750788597978,2.03336,2457.7,2457.3,0.81344]
[1750788597979,0.81346,2457.4,2457.3,0.81344]
[1750788598175,0.81346,2457.4,2457.3,7.16344]
[1750788598578,0.81343,2457.5,2457.4,0.81339]
[1750788598883,0.81343,2457.5,2457.4,10.97759]
[1750788599387,27.1654,2457.6,2457.5,0.81341]
[1750788599582,27.1654,2457.6,2457.5,6.52341]
[1750788600281,5.03863262,2457.8,2457.7,0.8133]
[1750788600282,0.81334,2457.8,2457.7,0.8133]
[1750788600479,0.8133,2457.9,2457.8,0.81327]
[1750788600680,27.1603,2457.9,2457.8,6.25327]